bitfinex/quotes_ETHUSD_20251116
["timestamp","ask_amount","ask_price","bid_price","bid_amount"]
[1763308584406,0.4751,3126.8,3125.3,3.19969282]
[1763308584609,0.4751,3126.8,3124.8,0.4655]
[1763308584906,0.4751,3126.8,3124.9,1.1337408]
[1763308585142,0.4751,3126.8,3122.6,6.40491896]
[1763308585143,1.5392448,3126.1,3122.6,6.40491896]
[1763308585317,0.1888,3124.4,3122.7,0.6870419]
[1763308585616,0.1888,3124.4,3123.0,5.69604348]
[1763308585767,0.1888,3124.4,3122.7,0.6870419]
[1763308585768,0.4751,3125.4,3124.0,5.69604348]
[1763308585969,0.4751,3126.9,3125.0,5.69604348]
[1763308586219,1.65791626,3128.0,3125.5,5.69604348]
[1763308586220,0.4751,3127.6,3125.5,5.69604348]
[1763308586369,0.4751,3127.6,3125.7,7.53230752]
[1763308586768,0.4751,3127.6,3126.1,5.69604348]
[1763308587003,0.1888,3127.7,3126.2,1.16572851]
[1763308587206,0.4751,3128.1,3126.2,1.1337408]
[1763308587412,0.1888,3127.8,3126.3,0.68297843]
[1763308587565,0.4751,3128.1,3126.6,6.19604348]
[1763308587909,0.1883,3129.6,3126.3,0.68297843]
[1763308587910,0.1883,3129.6,3127.7,5.69604348]
[1763308588092,0.1883,3129.6,3126.5,0.405504]
[1763308588093,0.1888,3130.0,3128.5,5.69604348]
[1763308588292,0.1888,3130.0,3125.5,0.43668569]
[1763308588293,0.6639,3130.0,3127.7,1.8008408]
[1763308588501,0.50712576,3129.9,3128.0,1.1337408]
[1763308588884,0.03202576,3129.8,3128.1,0.4655]
[1763308589065,0.03202576,3129.8,3128.0,1.1337408]
[1763308589602,0.50712576,3129.8,3128.0,1.1337408]
[1763308589804,1.44,3130.6,3128.0,1.1337408]
[1763308589805,0.03202576,3130.5,3128.1,0.4655]
[1763308590004,0.19471258,3130.4,3128.5,0.5]
[1763308590219,0.19471258,3130.4,3128.0,1.1337408]
[1763308590385,0.50712576,3130.3,3128.0,1.1337408]
[1763308590701,6.38936808,3130.2,3128.1,6.39365748]
[1763308590908,0.50712576,3130.1,3128.1,9.59048622]
[1763308591202,0.87730674,3130.1,3127.9,6.3940663]
[1763308591509,0.405504,3130.0,3127.0,0.5]
[1763308591666,0.405504,3130.0,3126.8,0.4655]
[1763308591667,0.405504,3129.8,3126.8,0.4655]
[1763308591865,0.405504,3129.6,3126.8,0.9655]
[1763308592065,0.405504,3129.4,3126.8,0.9655]
[1763308592383,0.405504,3129.2,3126.8,0.9655]
[1763308592570,6.89877783,3129.1,3127.0,1.1337408]
[1763308592774,1.14169795,3129.0,3127.1,1.07279075]
[1763308593212,0.66659795,3129.0,3127.1,1.07279075]
[1763308593376,0.4751,3128.9,3127.1,1.07279075]
[1763308593577,3.60100471,3129.5,3127.1,1.07279075]
[1763308593767,0.4751,3129.4,3127.4,0.5]
[1763308593973,0.1888,3130.7,3127.5,0.4655]
[1763308593974,0.4751,3130.0,3127.5,0.4655]
[1763308594224,0.4751,3130.2,3127.5,0.4655]
[1763308594368,0.3669682,3130.1,3127.5,0.4655]
[1763308594723,0.3669682,3130.1,3128.0,0.5]
[1763308594724,0.03202576,3130.0,3128.0,0.5]
[1763308594866,0.53072576,3130.0,3128.0,0.5]
[1763308595072,3.72565656,3130.0,3127.8,0.5]
[1763308595297,6.92058736,3130.0,3127.8,0.5]
[1763308595498,1.19075874,3129.9,3127.8,0.5]
[1763308595699,0.03202576,3129.8,3127.7,0.4762]
[1763308595908,0.405504,3129.6,3127.6,3.19733981]
[1763308596219,0.03202576,3129.5,3127.2,6.39549756]
[1763308596397,0.405504,3129.4,3127.3,1.1337408]
[1763308596600,6.39140994,3129.2,3127.4,6.39508856]
[1763308596798,0.67436933,3129.1,3127.4,6.39508856]
[1763308597039,1.17306933,3129.1,3127.4,6.39508856]
[1763308597218,0.4987,3129.0,3127.4,6.39508856]
[1763308597537,0.03202576,3128.9,3127.4,6.39508856]
[1763308597737,0.405504,3129.4,3127.4,6.39508856]
[1763308597738,0.4987,3129.6,3127.5,0.4762]
[1763308598036,0.53072576,3129.4,3127.5,2.36282374]
[1763308598398,3.37842036,3129.5,3127.5,2.36282374]
[1763308598399,0.4987,3129.9,3127.8,0.001]
[1763308598615,6.39038884,3129.7,3127.8,9.59240608]
[1763308598795,0.03202576,3129.6,3127.8,9.59240608]
[1763308599031,0.405504,3129.5,3127.8,0.001]
[1763308599342,0.22529706,3129.4,3127.8,0.001]
[1763308599656,0.72399706,3129.4,3127.8,0.001]
[1763308600210,0.03202576,3129.3,3127.8,0.001]
[1763308600415,0.53072576,3129.3,3127.8,0.001]
[1763308600846,3.72642786,3129.3,3127.8,0.001]
[1763308601146,0.183,3129.6,3127.9,1.1433]
[1763308601631,0.183,3129.6,3128.0,0.4762]
[1763308602143,0.03202576,3129.5,3128.0,0.4762]
[1763308602344,0.34103379,3129.4,3127.8,0.001]
[1763308602507,0.03202576,3129.3,3127.8,0.001]
[1763308602732,0.53072576,3129.3,3127.8,0.001]
[1763308603134,0.4987,3130.0,3128.1,0.5]
[1763308603372,0.4987,3130.0,3128.0,0.4762]
[1763308603373,0.03202576,3129.9,3128.0,0.4762]
[1763308603634,0.37256349,3129.8,3128.0,0.4762]
[1763308603858,0.37256349,3129.8,3127.7,12.78895032]
[1763308603859,0.37256349,3129.8,3127.7,9.59171274]
[1763308604065,0.37256349,3129.8,3116.7,0.071]
[1763308604066,0.5013,3125.1,3121.7,3.95576634]
[1763308604277,0.1828,3121.8,3118.3,9.0208683]
[1763308604482,0.8180892,3118.7,3118.4,0.94970683]
[1763308604637,0.65564574,3118.6,3117.0,4.48617827]
[1763308604840,3.65845906,3117.8,3117.0,7.69438664]
[1763308605081,5.41100247,3119.2,3117.7,0.1]
[1763308605245,5.41100247,3119.2,3117.3,6.85625141]
[1763308605246,6.84012113,3118.4,3117.3,6.85625141]
[1763308605570,0.65139062,3118.3,3117.0,10.90259398]
[1763308605774,6.84012113,3118.4,3117.1,1.57840375]
[1763308605932,6.84012113,3118.4,3117.1,1.0902594]
[1763308606134,2.16378103,3117.4,3117.1,7.5064796]
[1763308606381,0.81168995,3118.5,3118.3,0.1966]
[1763308606533,1.06658216,3119.5,3118.5,6.85625141]
[1763308606849,0.183,3122.0,3118.5,6.85625141]
[1763308606850,0.6817,3122.5,3120.2,1.1337408]
[1763308607038,0.6817,3122.5,3119.4,6.85625141]
[1763308607039,3.20266461,3122.4,3119.8,0.48814435]
[1763308607234,0.4987,3122.3,3119.8,1.1337408]
[1763308607578,0.183,3123.1,3120.4,0.1]
[1763308607733,1.9397,3123.9,3120.4,0.1]
[1763308607936,1.9397,3123.9,3119.9,0.92206207]
[1763308607937,0.4987,3123.9,3121.0,1.1337408]
[1763308608167,0.5013,3125.1,3121.8,6.85625141]
[1763308608374,0.5013,3125.1,3120.3,1.441]
[1763308608375,0.5013,3125.1,3122.9,0.1]
[1763308608543,3.20021669,3124.8,3122.3,0.1]
[1763308608884,0.5013,3125.1,3122.3,0.1]
[1763308609041,0.5013,3125.1,3122.8,0.1]
[1763308609381,0.5013,3125.1,3122.8,0.69562514]
[1763308609534,0.4987,3125.2,3122.5,1.1337408]
[1763308610469,0.6817,3123.9,3123.4,0.194899]
[1763308610669,0.6817,3123.9,3120.9,10.06045298]
[1763308610670,0.183,3123.9,3121.1,0.1]
[1763308610881,0.4987,3123.8,3121.0,6.40817221]
[1763308611082,6.4026635,3123.7,3121.1,0.64081722]
[1763308611256,6.4026635,3123.7,3120.8,0.1]
[1763308611460,0.4987,3123.6,3120.8,0.1]
[1763308611658,0.4987,3124.5,3122.1,0.1]
[1763308611980,0.183,3124.6,3122.1,0.1]
[1763308612163,0.4987,3124.5,3122.1,0.1]
[1763308612369,0.4987,3124.5,3121.8,0.1]
[1763308612886,0.4987,3125.2,3123.0,0.1]
[1763308613200,3.7942461,3125.5,3123.2,1.1337408]
[1763308613347,3.7942461,3125.5,3123.3,1.39735474]
[1763308613551,3.69789623,3125.8,3123.3,1.39735474]
[1763308613867,0.4987,3125.8,3123.3,1.39735474]
[1763308614061,2.71023902,3125.6,3123.3,1.39735474]
[1763308614273,0.03202576,3125.5,3123.3,1.39735474]
[1763308614584,2.71023902,3125.6,3123.4,0.25310955]
[1763308614889,6.50448512,3126.0,3124.3,0.405504]
[1763308615091,7.00318512,3127.0,3124.5,1.5392448]
[1763308615395,0.03202576,3126.9,3124.5,1.1337408]
[1763308615556,0.03202576,3126.9,3121.7,6.85625141]
[1763308615557,13.32540316,3126.3,3121.7,6.85625141]
[1763308615909,2.71023902,3125.1,3122.7,0.1]
[1763308616255,2.16743793,3124.7,3122.7,0.1]
[1763308616493,0.53072576,3125.0,3122.7,0.1]
[1763308616494,2.16743793,3124.4,3122.7,0.1]
[1763308616785,0.53072576,3125.0,3121.8,0.68562514]
[1763308616786,2.16743793,3124.2,3122.4,0.1]
[1763308616985,2.16743793,3124.3,3122.5,9.60768612]
[1763308617192,0.65015328,3124.2,3122.6,8.96076082]
[1763308617377,2.16743793,3125.5,3123.6,0.1]
[1763308617554,2.16743793,3125.3,3123.3,0.1]
[1763308617780,2.16743793,3125.0,3123.1,0.1]
[1763308618115,2.16743793,3124.8,3123.0,0.1]
[1763308618410,2.81767585,3124.7,3122.7,0.1]
[1763308618714,2.81767585,3124.6,3122.7,0.1]
[1763308618911,0.60023792,3124.5,3122.8,0.22045094]
[1763308619114,2.16743793,3124.6,3123.0,1.1337408]
[1763308619318,2.16743793,3124.7,3123.0,1.1337408]
[1763308619488,2.16743793,3125.1,3123.0,1.1337408]
[1763308619822,0.183,3123.1,3122.6,4.17314134]
[1763308619991,0.0489,3117.8,3114.8,0.4762]
[1763308620194,0.405504,3120.9,3114.8,0.4762]
[1763308620195,0.09999999,3116.0,3114.8,0.4762]
[1763308620379,0.09999999,3115.5,3114.8,0.3543]
[1763308620579,2.16743793,3117.0,3114.9,0.1966]
[1763308620781,2.16743793,3117.3,3114.9,0.1966]
[1763308621020,0.405504,3117.2,3115.0,9.63081861]
[1763308621235,0.00400866,3116.9,3115.0,9.63081861]
[1763308621375,0.00400866,3116.9,3114.9,0.1966]
[1763308621376,0.00400866,3116.9,3114.9,3.40697593]
[1763308621579,0.4987,3117.6,3114.9,9.82772779]
[1763308621804,0.405504,3117.5,3115.0,0.98277278]
[1763308622010,2.57294193,3117.5,3115.0,0.98277278]
[1763308622235,0.4987,3117.6,3115.0,0.98277278]
[1763308622517,0.405504,3118.0,3115.1,0.5762]
[1763308622721,0.16757221,3118.2,3116.1,0.1]
[1763308622922,0.16757221,3118.2,3116.6,1.1337408]
[1763308623085,0.4987,3120.2,3116.5,6.85625141]
[1763308623086,2.16743793,3119.8,3116.8,1.1337408]
[1763308623286,0.4987,3120.2,3117.6,0.1]
[1763308623906,2.16743793,3120.7,3117.7,0.50827492]
[1763308624083,0.00148336,3120.8,3117.7,0.4762]
[1763308624486,0.00148336,3120.8,3117.7,1.6099408]
[1763308624689,0.00148336,3120.8,3117.9,0.405504]
[1763308624915,2.16743793,3121.7,3119.1,0.1]
[1763308625113,2.16743793,3122.9,3120.2,0.1]
[1763308625361,2.26770793,3123.0,3120.3,0.6963482]
[1763308625500,0.10027,3123.0,3120.6,0.1]
[1763308625706,0.487,3122.9,3120.4,0.4696]
[1763308625945,0.03202576,3122.8,3120.4,0.4696]
[1763308626257,3.20179193,3123.3,3120.4,0.4696]
[1763308626258,2.16743793,3123.2,3120.4,0.4696]
[1763308626459,0.03202576,3123.1,3120.4,0.4696]
[1763308626810,1.61411451,3122.9,3120.4,0.4696]
[1763308627010,1.61411451,3122.9,3120.6,1.1337408]
[1763308627311,3.7942461,3124.2,3120.7,0.47066608]
[1763308627312,1.61411451,3123.1,3120.7,0.47066608]
[1763308627616,1.61411451,3123.0,3120.7,0.94026608]
[1763308627819,1.61411451,3122.8,3120.8,0.4696]
[1763308628131,1.61411451,3122.4,3120.7,0.47066608]
[1763308628445,1.61411451,3122.2,3120.7,0.47066608]
[1763308628651,1.61411451,3122.2,3120.8,0.16044069]
[1763308628949,1.61411451,3122.6,3120.8,0.16044069]
[1763308629151,1.61411451,3122.5,3120.8,0.63004069]
[1763308629320,1.61411451,3122.3,3120.9,0.4696]
[1763308629522,1.61411451,3122.5,3121.0,0.03204101]
[1763308629711,1.61411451,3122.9,3121.1,0.4696]
[1763308630342,1.61411451,3122.6,3120.6,1.6033408]
[1763308630563,1.61411451,3122.5,3120.7,1.59131264]
[1763308630886,1.61411451,3123.3,3121.6,0.1]
[1763308631011,2.71023902,3123.8,3121.5,1.1337408]
[1763308631012,1.61411451,3123.0,3121.5,1.1337408]
[1763308631211,1.61411451,3122.7,3121.3,0.1]
[1763308631534,1.61411451,3122.7,3120.9,1.1337408]
[1763308631535,1.61411451,3122.1,3120.9,1.1337408]
[1763308631736,0.64871191,3122.0,3120.9,1.1337408]
[1763308632047,1.61411451,3121.8,3120.8,0.4696]
[1763308632247,1.61411451,3120.9,3120.6,1.1337408]
[1763308632452,0.64871191,3120.8,3120.5,6.40913327]
[1763308632664,0.64871191,3120.8,3112.7,0.1]
[1763308632665,0.0792,3116.2,3112.7,0.1]
[1763308632906,1.62566427,3114.3,3112.8,0.4696]
[1763308633041,1.62566427,3114.1,3112.8,0.4696]
[1763308633240,3.7942461,3115.6,3112.8,0.4696]
[1763308633241,0.6494199,3114.0,3112.8,0.4696]
[1763308633560,0.6494199,3113.9,3112.8,0.4696]
[1763308633747,0.6494199,3113.8,3112.8,6.89467131]
[1763308633935,1.62566427,3114.2,3112.3,0.1]
[1763308633936,2.27508417,3113.7,3112.3,0.1]
[1763308634142,2.27508417,3113.7,3112.0,0.4696]
[1763308634143,0.6494199,3113.6,3112.8,0.5]
[1763308634337,0.6494199,3113.5,3112.8,0.5]
[1763308634566,1.62566427,3114.3,3112.8,0.5]
[1763308634772,0.6464106,3114.2,3112.8,0.5]
[1763308634968,0.6464106,3114.1,3112.9,0.4696]
[1763308635167,1.62566427,3115.1,3113.0,6.42467072]
[1763308635373,0.64513684,3115.0,3113.1,0.68942707]
[1763308635556,0.64513684,3114.9,3113.2,0.479]
[1763308635881,2.03116827,3115.6,3113.2,0.479]
[1763308635882,0.405504,3115.6,3113.2,0.479]
[1763308636045,1.62566427,3116.2,3114.4,0.5]
[1763308636248,1.62566427,3117.4,3116.0,0.5]
[1763308636558,5.41983859,3119.0,3114.5,0.03210788]
[1763308636559,1.07496276,3119.0,3117.8,0.5]
[1763308636761,0.03202576,3119.5,3117.4,0.479]
[1763308637073,0.03202576,3119.5,3115.7,3.20955162]
[1763308637074,3.20697838,3118.2,3115.7,3.20955162]
[1763308637274,1.07496276,3118.6,3116.3,0.5]
[1763308637587,1.07496276,3119.1,3115.9,6.85625141]
[1763308637761,1.07496276,3119.1,3115.8,0.84785516]
[1763308637762,1.07496276,3119.6,3117.5,0.1]
[1763308637963,1.07496276,3120.4,3118.0,0.5]
[1763308638179,1.07496276,3120.7,3118.0,0.5]
[1763308638351,1.07496276,3121.3,3118.1,1.10497481]
[1763308638556,0.03202576,3121.2,3118.2,0.63949748]
[1763308638754,1.07496276,3121.3,3118.2,0.479]
[1763308638985,1.07496276,3121.3,3118.3,0.479]
[1763308639290,1.07496276,3121.4,3118.4,12.8270908]
[1763308639491,1.07496276,3121.4,3118.5,0.479]
[1763308639661,1.07496276,3121.5,3118.5,0.51106669]
[1763308639984,4.27834815,3121.7,3119.8,0.5]
[1763308640290,0.4368,3121.9,3119.8,0.5]
[1763308640291,1.07496276,3121.6,3119.8,0.5]
[1763308640503,1.07496276,3121.7,3119.9,0.479]
[1763308640717,1.07496276,3122.0,3119.9,0.479]
[1763308640919,2.60435237,3122.7,3119.9,0.479]
[1763308640920,1.07496276,3122.4,3119.9,0.479]
[1763308641198,1.07496276,3122.5,3120.1,6.41005094]
[1763308641369,0.03202576,3122.4,3120.2,0.479]
[1763308641963,1.07496276,3121.6,3118.5,0.479]
[1763308642161,0.405504,3120.5,3117.7,0.479]
[1763308642361,2.16755237,3121.2,3117.7,0.479]
[1763308642362,1.07496276,3119.9,3117.7,0.479]
[1763308642669,1.07496276,3120.1,3117.7,3.6864927]
[1763308642882,1.07496276,3120.3,3117.8,1.98139007]
[1763308643084,0.405504,3120.1,3117.9,6.4145739]
[1763308643394,0.405504,3119.4,3117.6,0.5]
[1763308643595,1.07496276,3119.9,3117.6,0.5]
[1763308643893,1.07496276,3119.8,3117.7,0.479]
[1763308644208,1.07496276,3119.8,3117.1,3.20809289]
[1763308644209,1.07496276,3118.2,3115.7,0.479]
[1763308644505,1.07766989,3117.9,3115.8,1.18544854]
[1763308644658,1.48317389,3117.6,3115.0,3.31027287]
[1763308644858,1.07766989,3117.4,3115.0,6.52054574]
[1763308645165,1.07766989,3117.4,3114.5,3.21077023]
[1763308645166,1.07766989,3116.5,3114.6,6.42137032]
[1763308645359,1.07766989,3116.8,3115.1,0.479]
[1763308645600,1.07766989,3117.3,3115.1,0.479]
[1763308645759,1.07766989,3117.6,3115.1,0.479]
[1763308646108,1.07766989,3117.9,3115.9,0.1]
[1763308646259,1.07766989,3118.1,3115.9,0.1]
[1763308646465,1.07766989,3118.0,3116.0,0.479]
[1763308646759,1.07766989,3118.0,3116.1,0.03209139]
[1763308646967,1.07766989,3118.3,3116.0,0.479]
[1763308647161,2.71023902,3119.4,3116.0,0.479]
[1763308647162,1.07766989,3118.8,3116.4,0.405504]
[1763308647362,1.07766989,3119.0,3116.4,0.405504]
[1763308647562,1.07766989,3119.0,3116.5,0.479]
[1763308647787,0.64923992,3118.9,3117.5,0.1]
[1763308647997,1.07766989,3119.7,3117.5,0.1]
[1763308648198,1.07766989,3119.5,3117.6,0.479]
[1763308648417,0.64928487,3119.4,3117.6,0.479]
[1763308648617,0.64928487,3119.3,3117.6,0.479]
[1763308648769,1.07766989,3119.8,3117.6,0.479]
[1763308649119,0.65039511,3119.7,3117.8,1.1337408]
[1763308649426,1.76009076,3119.6,3117.8,1.1337408]
[1763308649601,1.07766989,3119.4,3117.6,0.479]
[1763308649779,1.07766989,3118.8,3117.0,0.479]
[1763308649980,1.728065,3118.7,3117.0,0.479]
[1763308650215,1.07766989,3118.5,3117.0,0.479]
[1763308650411,0.65039511,3118.4,3116.7,16.04260915]
[1763308650714,0.65039511,3118.3,3117.1,0.479]
[1763308650928,1.07766989,3118.8,3117.1,0.479]
[1763308650929,1.728065,3118.2,3117.1,0.479]
[1763308651130,0.65039511,3118.1,3117.3,1.1337408]
[1763308651418,0.65039511,3118.0,3117.2,1.1337408]
[1763308651640,0.65039511,3117.9,3117.2,1.1337408]
[1763308651775,0.65039511,3117.8,3117.2,1.1337408]
[1763308651979,0.65039511,3117.7,3117.2,1.1337408]
[1763308652177,1.07766989,3118.3,3117.3,0.479]
[1763308652372,0.65178099,3118.2,3117.6,0.1]
[1763308652577,1.07766989,3119.2,3117.6,0.1]
[1763308652818,0.65195355,3119.1,3117.7,0.479]
[1763308653024,0.65195355,3119.0,3117.7,0.479]
[1763308653226,0.65195355,3118.9,3117.9,1.1337408]
[1763308653433,0.6520181,3118.8,3117.9,1.1337408]
[1763308653723,0.6520181,3118.7,3117.9,1.6127408]
[1763308653926,1.07766989,3119.2,3117.7,3.20747279]
[1763308654158,1.07766989,3118.8,3117.3,9.62365097]
[1763308654294,0.0657937,3117.9,3117.4,1.1337408]
[1763308654494,0.0657937,3117.9,3117.5,0.4902]
[1763308654889,0.0657937,3117.9,3117.5,0.4402]
[1763308655297,0.0657937,3117.9,3117.7,1.1337408]
[1763308655620,1.07766989,3119.1,3117.7,1.1337408]
[1763308655824,0.65221971,3119.0,3117.7,1.1337408]
[1763308656128,1.07766989,3118.4,3117.1,3.20909432]
[1763308656422,1.07766989,3118.2,3117.2,0.03208007]
[1763308656624,0.60221971,3118.1,3117.1,6.4172202]
[1763308656789,1.07766989,3118.2,3117.1,6.4172202]
[1763308656790,1.07766989,3118.2,3117.1,3.2091101]
[1763308656991,1.07766989,3118.4,3117.2,1.6239408]
[1763308657225,1.07766989,3118.4,3117.4,1.1337408]
[1763308657524,1.63060609,3118.6,3117.4,1.1337408]
[1763308657525,1.07766989,3118.6,3117.4,1.1337408]
[1763308657821,1.07766989,3118.5,3117.4,1.1337408]
[1763308658022,1.07766989,3118.6,3117.5,0.52227698]
[1763308658239,1.07766989,3118.9,3117.6,0.16560178]
[1763308658395,1.07766989,3119.2,3118.0,0.1]
[1763308658594,1.07766989,3119.5,3118.0,0.1]
[1763308658814,1.07766989,3119.7,3118.1,0.6896]
[1763308658981,1.07766989,3119.7,3118.2,0.4902]
[1763308659194,1.07766989,3119.8,3118.4,1.1337408]
[1763308659398,1.07766989,3120.3,3119.0,0.1]
[1763308659596,3.20411107,3121.0,3119.0,0.1]
[1763308659597,1.07766989,3120.4,3119.0,0.1]
[1763308659903,1.07766989,3120.5,3119.0,0.5902]
[1763308660090,1.07766989,3120.4,3119.0,0.5902]
[1763308660296,1.07766989,3120.8,3119.0,0.5902]
[1763308660613,1.07766989,3120.8,3119.1,0.17239408]
[1763308660836,0.002,3121.6,3120.7,0.1994]
[1763308661036,2.72963486,3122.6,3121.5,0.1994]
[1763308661334,0.453,3123.0,3121.0,1.1337408]
[1763308661543,0.453,3123.0,3121.1,0.81524261]
[1763308661746,0.99518386,3123.6,3121.3,1.1337408]
[1763308662051,0.453,3123.6,3121.5,0.1]
[1763308662509,0.453,3123.6,3121.5,0.5902]
[1763308662908,0.28420365,3123.5,3121.3,1.1337408]
[1763308663105,0.28420365,3123.5,3120.9,6.40840782]
[1763308663106,0.405504,3123.3,3121.0,1.1337408]
[1763308663307,0.405504,3122.9,3121.2,1.1337408]
[1763308663789,0.405504,3122.7,3121.1,3.20399859]
[1763308663998,0.2843167,3122.6,3121.1,6.40799718]
[1763308664313,0.7373167,3122.6,3121.2,1.1337408]
[1763308664513,0.453,3122.6,3121.2,1.1337408]
[1763308665307,0.28517622,3122.5,3121.4,1.1337408]
[1763308665704,0.28517622,3122.5,3119.8,3.20527509]
[1763308665705,0.453,3122.4,3120.3,0.1]
[1763308666033,0.453,3123.0,3120.5,1.1337408]
[1763308666243,0.69067881,3122.9,3120.5,1.1337408]
[1763308666542,0.28517481,3122.8,3120.5,1.1337408]
[1763308666742,0.405504,3122.6,3120.3,0.4902]
[1763308667058,0.28517481,3122.5,3120.3,0.4902]
[1763308667237,0.28517481,3122.6,3120.6,16.02255975]
[1763308667406,0.28517481,3122.6,3120.7,1.1337408]
[1763308667603,0.28517481,3122.6,3120.9,0.1]
[1763308667809,0.453,3122.7,3120.9,0.1]
[1763308668017,0.82214872,3123.4,3120.9,0.5902]
[1763308668220,0.73824896,3123.3,3120.9,0.5902]
[1763308668447,0.28524896,3123.2,3120.9,0.5902]
[1763308668748,0.73824896,3123.2,3120.9,0.5902]
[1763308668949,0.28524896,3123.1,3120.9,0.5902]
[1763308669139,0.73824896,3123.1,3120.9,0.5902]
[1763308669337,0.73824896,3123.1,3121.1,1.1337408]
[1763308669338,0.405504,3123.0,3121.1,1.1337408]
[1763308669630,0.453,3122.9,3121.1,1.1337408]
[1763308669806,0.453,3122.9,3121.2,0.4902]
[1763308670012,0.453,3122.9,3121.2,0.45812543]
[1763308670213,0.453,3122.9,3121.2,1.57086183]
[1763308670413,0.453,3122.9,3121.2,0.45812543]
[1763308670636,0.28494722,3122.8,3121.1,1.1337408]
[1763308671150,0.6336,3122.7,3121.1,1.1337408]
[1763308671349,0.6336,3122.7,3121.2,9.61168779]
[1763308671519,0.453,3122.6,3121.2,9.61168779]
[1763308671727,0.453,3122.6,3121.2,12.81558372]
[1763308671923,0.453,3122.6,3121.2,1.71534258]
[1763308672136,0.453,3122.6,3121.0,0.4902]
[1763308672312,0.453,3123.5,3121.3,5.5648766]
[1763308672514,0.002,3123.7,3121.9,1.2337408]
[1763308672929,0.002,3123.7,3122.0,0.42136193]
[1763308673125,0.002,3123.7,3122.1,0.1305]
[1763308673330,0.002,3123.7,3122.3,1.1337408]
[1763308673619,0.002,3123.7,3122.2,1.1337408]
[1763308673819,0.002,3123.7,3122.3,0.767016]
[1763308674019,0.002,3123.7,3122.5,1.1337408]
[1763308674238,0.002,3123.7,3123.0,0.5]
[1763308674443,0.002,3123.7,3122.7,0.5]
[1763308674750,0.002,3123.7,3123.1,0.5]
[1763308675416,0.002,3123.7,3123.3,1.1337408]
[1763308675835,0.002,3123.7,3123.2,6.40368852]
[1763308676063,0.002,3123.7,3123.0,1.1337408]
[1763308676830,0.002,3123.7,3123.1,0.1884]
[1763308677154,0.002,3123.7,3123.0,2.1239408]
[1763308677466,0.002,3123.7,3123.6,0.5]
[1763308678041,0.002,3123.7,3123.6,0.9902]
[1763308678355,0.002,3125.6,3124.7,0.5]
[1763308678675,0.453,3125.5,3123.9,0.5]
[1763308679328,0.453,3125.5,3124.0,12.80409728]
[1763308679538,0.453,3125.5,3124.1,1.1337408]
[1763308679952,0.002,3125.6,3124.6,0.5]
[1763308680252,0.453,3125.5,3122.4,3.20263594]
[1763308680557,0.453,3125.5,3123.5,0.5]
[1763308681119,0.453,3125.5,3122.8,0.895704]
[1763308681120,0.1806,3123.6,3122.8,0.5]
[1763308681359,0.1806,3123.6,3121.2,0.6786]
[1763308681558,0.1806,3122.9,3121.3,13.20342641]
[1763308681758,0.453,3123.5,3121.7,5.5648766]
[1763308681962,0.453,3123.5,3121.3,16.4072197]
[1763308681963,0.453,3123.5,3121.3,12.81517316]
[1763308682138,0.453,3123.5,3121.7,0.5]
[1763308682334,0.453,3123.5,3120.4,0.48267495]
[1763308682335,0.5021,3120.0,3119.2,0.33312687]
[1763308682526,0.5021,3120.0,3112.0,0.1994]
[1763308682527,0.05,3117.2,3115.7,1.78541763]
[1763308682729,0.05,3117.2,3110.9,0.1994]
[1763308682730,5.5648766,3115.4,3110.9,0.1994]
[1763308682923,0.1321,3115.8,3111.7,0.24749004]
[1763308682924,0.405504,3115.2,3111.7,0.24749004]
[1763308683122,2.73975407,3112.6,3112.1,5.5648766]
[1763308683429,2.73975407,3112.6,3111.8,0.80697263]
[1763308683430,3.52839267,3112.7,3111.1,5.5648766]
[1763308683645,5.41983859,3113.3,3111.1,5.5648766]
[1763308683849,5.41983859,3113.3,3111.1,3.31429719]
[1763308684057,5.41983859,3112.2,3111.1,6.42859438]
[1763308684242,2.17015053,3111.3,3111.1,8.77917379]
[1763308684416,2.02914673,3112.2,3111.1,3.21429719]
[1763308684621,2.1606433,3111.8,3111.1,11.99347098]
[1763308685029,7.04453734,3114.0,3111.7,5.5648766]
[1763308685248,7.04453734,3114.0,3111.8,0.52153574]
[1763308685512,7.04453734,3114.0,3111.0,2.0044954]
[1763308685513,5.31439411,3113.9,3111.2,0.4894]
[1763308685649,2.1029872,3113.9,3111.3,0.0321409]
[1763308685977,8.67533463,3114.1,3111.7,5.5648766]
[1763308686136,8.67533463,3114.1,3112.2,0.1]
[1763308686318,0.4857,3115.0,3112.3,5.5648766]
[1763308686746,5.5648766,3114.9,3111.2,6.42835787]
[1763308686930,6.90634608,3115.0,3111.8,0.1]
[1763308687135,1.17633461,3114.9,3111.8,5.6648766]
[1763308687335,1.17633461,3114.9,3111.2,12.85674563]
[1763308687336,7.04453734,3116.6,3111.9,0.1]
[1763308687618,11.29718662,3117.8,3111.9,0.1]
[1763308687619,0.532,3117.3,3114.8,0.1857]
[1763308687838,5.5648766,3117.1,3113.9,5.6648766]
[1763308688086,0.4857,3117.2,3114.5,5.5648766]
[1763308688228,0.4857,3117.2,3114.7,0.1]
[1763308688423,6.0505766,3117.2,3114.7,0.1]
[1763308688658,0.93048029,3117.1,3114.2,0.1]
[1763308688971,1.41618029,3117.1,3114.2,0.1]
[1763308689120,0.4857,3117.0,3114.3,0.4894]
[1763308689354,0.4857,3117.8,3115.0,5.5648766]
[1763308689584,0.4857,3118.5,3115.5,0.1]
[1763308689792,0.4857,3117.8,3115.2,0.1]
[1763308690003,0.4857,3117.8,3115.2,0.5894]
[1763308690168,0.6844,3118.6,3115.3,0.64606696]
[1763308690356,5.5648766,3118.3,3115.3,0.1857]
[1763308690558,0.55648766,3118.2,3115.4,0.63399766]
[1763308690916,1.07076705,3117.1,3115.4,0.4894]
[1763308691059,1.07076705,3117.2,3115.4,0.4894]
[1763308691258,1.07076705,3117.4,3115.7,5.5648766]
[1763308691504,0.4857,3118.1,3115.8,9.62834583]
[1763308691505,1.07076705,3117.8,3115.8,9.62834583]
[1763308691654,1.07076705,3117.8,3115.8,10.11774583]
[1763308691870,1.07076705,3117.8,3115.9,2.00766224]
[1763308692071,3.20680463,3118.4,3115.9,2.00766224]